fUST/lending_fUST_20240722
["ID","MTS","AMOUNT","RATE_DAILY","PERIOD"]
[332897056,1721657454677,-500.0,0.00013698,2]
[332897057,1721657454688,-428.31722286,0.00013698,2]
[332897058,1721657454698,-500.0,0.00013698,2]
[332897059,1721657454707,-500.0,0.00013698,2]
[332897060,1721657454717,-500.0,0.00013698,2]
[332897061,1721657454727,-1076.50596718,0.00013698,2]
[332897062,1721657454740,-1076.50596718,0.00013698,2]
[332897063,1721657454750,-1076.50596718,0.00013698,2]
[332897064,1721657454761,-1076.50596718,0.00013698,2]
[332897065,1721657454771,-1076.50596718,0.00013698,2]
[332897066,1721657454781,-500.0,0.00013698,2]
[332897067,1721657454790,-1076.50596718,0.00013698,2]
[332897068,1721657454799,-1076.50596718,0.00013698,2]
[332897069,1721657454809,-500.0,0.00013698,2]
[332897070,1721657454819,-1076.50596718,0.00013698,2]
[332897071,1721657454830,-500.0,0.00013698,2]
[332897072,1721657454841,-1076.50596718,0.00013698,2]
[332897073,1721657454853,-151.0,0.00013698,2]
[332897074,1721657454862,-151.0,0.00013698,2]
[332897075,1721657454872,-500.0,0.00013698,2]
[332897076,1721657454890,-500.0,0.00013698,2]
[332897077,1721657454899,-156.163564,0.00013698,2]
[332897078,1721657454908,-500.0,0.00013698,2]
[332897079,1721657454918,-500.0,0.00013698,2]
[332897080,1721657454927,-500.0,0.00013698,2]
[332897081,1721657454938,-500.0,0.00013698,2]
[332897082,1721657454948,-500.0,0.00013698,2]
[332897083,1721657454958,-424.52037373,0.00013698,2]
[332897084,1721657454967,-557.2525483,0.00013698,2]
[332897085,1721657454977,-500.0,0.00013698,2]
[332897086,1721657454986,-500.0,0.00013698,2]
[332897087,1721657454995,-500.0,0.00013698,2]
[332897088,1721657455005,-500.0,0.00013698,2]
[332897089,1721657455015,-500.0,0.00013698,2]
[332897090,1721657455025,-500.0,0.00013698,2]
[332897091,1721657455034,-500.0,0.00013698,2]
[332897092,1721657455045,-500.0,0.00013698,2]
[332897093,1721657455055,-500.0,0.00013698,2]
[332897094,1721657455066,-500.0,0.00013698,2]
[332897095,1721657455077,-500.0,0.00013698,2]
[332897096,1721657455087,-500.0,0.00013698,2]
[332897097,1721657455096,-500.0,0.00013698,2]
[332897098,1721657455107,-470.0,0.00013698,2]
[332897099,1721657455117,-500.0,0.00013698,2]
[332897100,1721657455126,-500.0,0.00013698,2]
[332897101,1721657455137,-500.0,0.00013698,2]
[332897102,1721657455146,-500.0,0.00013698,2]
[332897103,1721657455156,-500.0,0.00013698,2]
[332897104,1721657455165,-500.0,0.00013698,2]
[332897105,1721657455174,-500.0,0.00013698,2]
[332897106,1721657455186,-500.0,0.00013698,2]
[332897107,1721657455195,-500.0,0.00013698,2]
[332897108,1721657455206,-500.0,0.00013698,2]
[332897109,1721657455216,-500.0,0.00013698,2]
[332897110,1721657455227,-500.0,0.00013698,2]
[332897111,1721657455237,-500.0,0.00013698,2]
[332897112,1721657455247,-500.0,0.00013698,2]
[332897113,1721657455257,-500.0,0.00013698,2]
[332897114,1721657455266,-500.0,0.00013698,2]
[332897115,1721657455275,-500.0,0.00013698,2]
[332897116,1721657455286,-500.0,0.00013698,2]
[332897117,1721657455296,-500.0,0.00013698,2]
[332897118,1721657455306,-500.0,0.00013698,2]
[332897119,1721657455316,-500.0,0.00013698,2]
[332897120,1721657455327,-500.0,0.00013698,2]
[332897121,1721657455337,-500.0,0.00013698,2]
[332897122,1721657455346,-500.0,0.00013698,2]
[332897123,1721657455355,-500.0,0.00013698,2]
[332897124,1721657455365,-500.0,0.00013698,2]
[332897125,1721657455374,-500.0,0.00013698,2]
[332897126,1721657455383,-321.188806,0.00013699,2]
[332897127,1721657455394,-151.0,0.00013699,2]
[332897128,1721657455403,-151.0,0.00013699,2]
[332897129,1721657455412,-151.0,0.00013699,2]
[332897130,1721657455422,-151.0,0.00013699,2]
[332897131,1721657455431,-151.0,0.00013699,2]
[332897132,1721657455442,-151.0,0.00013699,2]
[332897133,1721657455451,-151.0,0.00013699,2]
[332897134,1721657455462,-151.0,0.00013699,2]
[332897135,1721657455497,-151.0,0.00013699,2]
[332897136,1721657455507,-161.205841,0.00013699,2]
[332897137,1721657455516,-1000.0,0.00013699,2]
[332897138,1721657455527,-1000.0,0.00013699,2]
[332897139,1721657455539,-1000.0,0.00013699,2]
[332897140,1721657455550,-1000.0,0.00013699,2]
[332897141,1721657455559,-1000.0,0.00013699,2]
[332897142,1721657455568,-1000.0,0.00013699,2]
[332897143,1721657455577,-1000.0,0.00013699,2]
[332897144,1721657455586,-1000.0,0.00013699,2]
[332897145,1721657455595,-1000.0,0.00013699,2]
[332897146,1721657455604,-1000.0,0.00013699,2]
[332897147,1721657455613,-1000.0,0.00013699,2]
[332897148,1721657455622,-1000.0,0.00013699,2]
[332897149,1721657455631,-1000.0,0.00013699,2]
[332897150,1721657455639,-1000.0,0.00013699,2]
[332897151,1721657455650,-1000.0,0.00013699,2]
[332897152,1721657455663,-1000.0,0.00013699,2]
[332897153,1721657455672,-1000.0,0.00013699,2]
[332897154,1721657455682,-1000.0,0.00013699,2]
[332897155,1721657455691,-1000.0,0.00013699,2]
[332897156,1721657455701,-1000.0,0.00013699,2]
[332897157,1721657455709,-1000.0,0.00013699,2]
[332897158,1721657455719,-1000.0,0.00013699,2]
[332897159,1721657455727,-1000.0,0.00013699,2]
[332897160,1721657455739,-1000.0,0.00013699,2]
[332897161,1721657455748,-1000.0,0.00013699,2]
[332897162,1721657455758,-1000.0,0.00013699,2]
[332897163,1721657455767,-290.022056,0.00013699,2]
[332897164,1721657455778,-784.522209,0.00013699,2]
[332897165,1721657455788,-3000.0,0.00013699,2]
[332897166,1721657455797,-566.544535,0.00013699,2]
[332897167,1721657455808,-566.544535,0.00013699,2]
[332897168,1721657455817,-566.544535,0.00013699,2]
[332897169,1721657455827,-566.544535,0.00013699,2]
[332897170,1721657455836,-566.544535,0.00013699,2]
[332897171,1721657455847,-566.544535,0.00013699,2]
[332897172,1721657455857,-566.544535,0.00013699,2]
[332897173,1721657455866,-566.544535,0.00013699,2]
[332897174,1721657455876,-566.544535,0.00013699,2]
[332897175,1721657455886,-566.544535,0.00013699,2]
[332897176,1721657455897,-566.544535,0.00013699,2]
[332897177,1721657455907,-566.544535,0.00013699,2]
[332897178,1721657455918,-566.544535,0.00013699,2]
[332897179,1721657455928,-566.544535,0.00013699,2]
[332897180,1721657455938,-566.544535,0.00013699,2]
[332897181,1721657455947,-566.544535,0.00013699,2]
[332897182,1721657455956,-566.544535,0.00013699,2]
[332897183,1721657455965,-566.544535,0.00013699,2]
[332897184,1721657455976,-566.544535,0.00013699,2]
[332897185,1721657455986,-566.544539,0.00013699,2]
[332897186,1721657455995,-215.451537,0.00013699,2]
[332897187,1721657456005,-215.451537,0.00013699,2]
[332897188,1721657456015,-215.451537,0.00013699,2]
[332897189,1721657456024,-215.451537,0.00013699,2]
[332897190,1721657456033,-215.451537,0.00013699,2]
[332897191,1721657456042,-215.451537,0.00013699,2]
[332897192,1721657456051,-215.451537,0.00013699,2]
[332897193,1721657456060,-215.451537,0.00013699,2]
[332897194,1721657456070,-215.451537,0.00013699,2]
[332897195,1721657456079,-215.451537,0.00013699,2]
[332897196,1721657456089,-215.451537,0.00013699,2]
[332897197,1721657456099,-215.451537,0.00013699,2]
[332897198,1721657456108,-215.451537,0.00013699,2]
[332897199,1721657456118,-215.451537,0.00013699,2]
[332897200,1721657456127,-215.451537,0.00013699,2]
[332897201,1721657456138,-215.451537,0.00013699,2]
[332897202,1721657456148,-215.451537,0.00013699,2]
[332897203,1721657456157,-215.451537,0.00013699,2]
[332897204,1721657456167,-215.451537,0.00013699,2]
[332897205,1721657456177,-215.45153,0.00013699,2]
[332897206,1721657456188,-153.0,0.000137,2]
[332897207,1721657456197,-306.547776,0.000137,2]
[332897208,1721657456207,-500.0,0.00013714,2]
[332897209,1721657456216,-1565.16154092,0.00013725,2]
[332897210,1721657456226,-199.2491992,0.000138,2]
[332897211,1721657456238,-500.0,0.00013878,2]
[332897212,1721657456247,-500.0,0.00013878,2]
[332897213,1721657456256,-500.0,0.0001388,2]
[332897214,1721657456265,-500.0,0.0001388,2]
[332897215,1721657456275,-500.0,0.0001388,2]
[332897216,1721657456285,-500.0,0.0001388,2]
[332897217,1721657456296,-500.0,0.0001388,2]
[332897218,1721657456306,-500.0,0.00013888,2]
[332897219,1721657456316,-153.05807994,0.00013889,2]
[332897220,1721657456326,-500.0,0.00013899,2]
[332897221,1721657456338,-500.0,0.00013899,2]
[332897222,1721657456349,-500.0,0.00013899,2]
[332897223,1721657456359,-169.68066565,0.00013899,2]
[332897224,1721657456369,-500.0,0.00013971,2]
[332897225,1721657456378,-278.42817169,0.00013972,2]
[332897226,1721657456388,-500.0,0.00013972,2]
[332897227,1721657456397,-500.0,0.00013972,2]
[332897228,1721657456408,-236.73723315,0.00013972,2]
[332897229,1721657456419,-571.58,0.00013972,2]
[332897230,1721657456429,-500.0,0.00013972,2]
[332897231,1721657456437,-500.0,0.00013972,2]
[332897232,1721657456447,-517.17329576,0.00013972,2]
[332897233,1721657456456,-500.0,0.00013972,2]
[332897234,1721657456465,-500.0,0.00013972,2]
[332897235,1721657456474,-500.0,0.00013972,2]
[332897236,1721657456484,-500.0,0.00013972,2]
[332897237,1721657456494,-500.0,0.00013972,2]
[332897238,1721657456503,-500.0,0.00013972,2]
[332897239,1721657456512,-500.0,0.00013972,2]
[332897240,1721657456521,-503.09669277,0.00013972,2]
[332897241,1721657456531,-500.0,0.00013972,2]
[332897242,1721657456540,-500.0,0.00013972,2]
[332897243,1721657456549,-500.0,0.00013972,2]
[332897244,1721657456559,-584.81,0.00013972,2]
[332897245,1721657456568,-500.0,0.00013972,2]
[332897246,1721657456577,-500.0,0.00013972,2]
[332897247,1721657456586,-500.0,0.00013972,2]
[332897248,1721657456595,-500.0,0.00013972,2]
[332897249,1721657456604,-500.0,0.00013972,2]
[332897250,1721657456612,-240.17014967,0.00013972,2]
[332897251,1721657456621,-269.8,0.00013972,2]
[332897252,1721657456630,-183.3,0.00013972,2]
[332897253,1721657456639,-500.0,0.00013972,2]
[332897254,1721657456649,-500.0,0.00013972,2]
[332897255,1721657456660,-500.0,0.00013972,2]
[332897256,1721657456672,-500.0,0.00013972,2]
[332897257,1721657456682,-500.0,0.00013972,2]
[332897258,1721657456693,-500.0,0.00013972,2]
[332897259,1721657456703,-229.18,0.00013972,2]
[332897260,1721657456713,-500.0,0.00013972,2]
[332897261,1721657456723,-500.0,0.00013972,2]
[332897262,1721657456735,-661.91,0.00013972,2]
[332897263,1721657456744,-500.0,0.00013972,2]
[332897264,1721657456754,-500.0,0.00013972,2]
[332897265,1721657456764,-375.32,0.00013972,2]
[332897266,1721657456774,-500.0,0.00013972,2]
[332897267,1721657456783,-500.0,0.00013972,2]
[332897268,1721657456792,-500.0,0.00013972,2]
[332897269,1721657456802,-500.0,0.00013972,2]
[332897270,1721657456811,-1091.76,0.00013972,2]
[332897271,1721657456821,-500.0,0.00013972,2]
[332897272,1721657456831,-500.0,0.00013972,2]
[332897273,1721657456840,-208.23,0.00013972,2]
[332897274,1721657456849,-500.0,0.00013972,2]
[332897275,1721657456859,-514.49343643,0.00013972,2]
[332897276,1721657456868,-500.0,0.00013972,2]
[332897277,1721657457078,-500.0,0.00013972,2]
[332897278,1721657457089,-500.0,0.00013972,2]
[332897279,1721657457098,-503.50537727,0.00013972,2]
[332897280,1721657457108,-502.99174929,0.00013972,2]
[332897281,1721657457117,-500.0,0.00013972,2]
[332897282,1721657457127,-531.43,0.00013972,2]
[332897283,1721657457136,-500.0,0.00013972,2]
[332897284,1721657457145,-500.0,0.00013972,2]
[332897285,1721657457154,-500.0,0.00013972,2]
[332897286,1721657457165,-500.0,0.00013972,2]
[332897287,1721657457175,-500.0,0.00013972,2]
[332897288,1721657457184,-366.54,0.00013972,2]
[332897289,1721657457196,-500.0,0.00013972,2]
[332897290,1721657457206,-500.0,0.00013972,2]
[332897291,1721657457217,-500.0,0.00013972,2]
[332897292,1721657457227,-331.69,0.00013972,2]
[332897293,1721657457237,-500.0,0.00013972,2]
[332897294,1721657457247,-500.0,0.00013972,2]
[332897295,1721657457257,-629.78,0.00013972,2]
[332897296,1721657457268,-500.0,0.00013972,2]
[332897297,1721657457277,-500.0,0.00013972,2]
[332897298,1721657457286,-500.0,0.00013972,2]
[332897299,1721657457295,-500.0,0.00013972,2]
[332897300,1721657457304,-277.51,0.00013972,2]
[332897301,1721657457314,-500.0,0.00013972,2]
[332897302,1721657457323,-500.0,0.00013972,2]
[332897303,1721657457332,-214.17,0.00013972,2]
[332897304,1721657457341,-500.0,0.00013972,2]
[332897305,1721657457350,-500.0,0.00013972,2]
[332897306,1721657457359,-500.0,0.00013972,2]
[332897307,1721657457368,-500.0,0.00013972,2]
[332897308,1721657457377,-500.0,0.00013972,2]
[332897309,1721657457387,-159.08,0.00013972,2]
[332897310,1721657457396,-500.0,0.00013972,2]
[332897311,1721657457405,-500.0,0.00013972,2]
[332897312,1721657457414,-500.0,0.00013972,2]
[332897313,1721657457423,-500.0,0.00013972,2]
[332897314,1721657457432,-500.0,0.00013972,2]
[332897315,1721657457441,-500.0,0.00013972,2]
[332897316,1721657457450,-500.0,0.00013972,2]
[332897317,1721657457459,-500.0,0.00013972,2]
[332897318,1721657457469,-549.52,0.00013972,2]
[332897319,1721657457478,-500.0,0.00013972,2]
[332897320,1721657457487,-500.0,0.00013972,2]
[332897321,1721657457497,-500.0,0.00013972,2]
[332897322,1721657457506,-500.0,0.00013972,2]
[332897323,1721657457515,-500.0,0.00013972,2]
[332897324,1721657457523,-441.04,0.00013972,2]
[332897325,1721657457532,-291.33,0.00013972,2]
[332897326,1721657457541,-500.0,0.00013972,2]
[332897327,1721657457551,-532.64,0.00013972,2]
[332897328,1721657457559,-500.0,0.00013972,2]
[332897329,1721657457569,-226.45,0.00013972,2]
[332897330,1721657457578,-501.61,0.00013972,2]
[332897331,1721657457588,-500.0,0.00013972,2]
[332897332,1721657457597,-500.0,0.00013972,2]
[332897333,1721657457606,-500.0,0.00013972,2]
[332897334,1721657457615,-198.36,0.00013972,2]
[332897335,1721657457624,-500.0,0.00013972,2]
[332897336,1721657457634,-500.0,0.00013972,2]
[332897337,1721657457643,-500.0,0.00013972,2]
[332897338,1721657457653,-500.0,0.00013972,2]
[332897339,1721657457667,-608.22,0.00013972,2]
[332897340,1721657457676,-500.0,0.00013972,2]
[332897341,1721657457685,-500.0,0.00013972,2]
[332897342,1721657457694,-500.0,0.00013972,2]
[332897343,1721657457705,-500.0,0.00013972,2]
[332897344,1721657457714,-537.40784639,0.00013972,2]
[332897345,1721657457723,-500.0,0.00013972,2]
[332897346,1721657457733,-500.0,0.00013972,2]
[332897347,1721657457743,-502.27364865,0.00013972,2]
[332897348,1721657457752,-500.0,0.00013972,2]
[332897349,1721657457761,-500.0,0.00013972,2]
[332897350,1721657457771,-500.0,0.00013972,2]
[332897351,1721657457780,-392.29,0.00013972,2]
[332897352,1721657457789,-500.0,0.00013972,2]
[332897353,1721657457802,-234.57,0.00013972,2]
[332897354,1721657457813,-500.0,0.00013972,2]
[332897355,1721657457825,-500.0,0.00013972,2]
[332897356,1721657457836,-500.0,0.00013972,2]
[332897357,1721657457846,-170.70712233,0.00013972,2]
[332897358,1721657457856,-500.0,0.00013972,2]
[332897359,1721657457867,-500.0,0.00013972,2]
[332897360,1721657457878,-500.0,0.00013972,2]
[332897361,1721657457888,-500.0,0.00013972,2]
[332897362,1721657457898,-588.21,0.00013972,2]
[332897363,1721657457909,-500.0,0.00013972,2]
[332897364,1721657457921,-500.0,0.00013972,2]
[332897365,1721657457934,-500.0,0.00013972,2]
[332897366,1721657457945,-389.56,0.00013972,2]
[332897367,1721657457957,-500.0,0.00013972,2]
[332897368,1721657457968,-500.0,0.00013972,2]
[332897369,1721657457978,-500.0,0.00013972,2]
[332897370,1721657457988,-500.0,0.00013972,2]
[332897371,1721657457998,-470.27925151,0.00013972,2]
[332897372,1721657458008,-589.65,0.00013972,2]
[332897373,1721657458018,-500.0,0.00013972,2]
[332897374,1721657458028,-511.24417441,0.00013972,2]
[332897375,1721657458038,-603.94,0.00013972,2]
[332897376,1721657458048,-500.0,0.00013972,2]
[332897377,1721657458058,-500.0,0.00013972,2]
[332897378,1721657458068,-579.55,0.00013972,2]
[332897379,1721657458078,-500.0,0.00013972,2]
[332897380,1721657458087,-500.0,0.00013972,2]
[332897381,1721657458097,-513.42301202,0.00013972,2]
[332897382,1721657458106,-500.0,0.00013972,2]
[332897383,1721657458116,-470.79342525,0.00013972,2]
[332897384,1721657458125,-500.0,0.00013972,2]
[332897385,1721657458135,-500.0,0.00013972,2]
[332897386,1721657458144,-504.22224232,0.00013972,2]
[332897387,1721657458154,-500.0,0.00013972,2]
[332897388,1721657458164,-172.04,0.00013972,2]
[332897389,1721657458174,-500.0,0.00013972,2]
[332897390,1721657458187,-500.0,0.00013972,2]
[332897391,1721657458197,-500.0,0.00013972,2]
[332897392,1721657458206,-500.0,0.00013972,2]
[332897393,1721657458216,-295.40815854,0.00013972,2]
[332897394,1721657458226,-500.0,0.00013972,2]
[332897395,1721657458237,-500.0,0.00013972,2]
[332897396,1721657458247,-500.0,0.00013972,2]
[332897397,1721657458259,-500.0,0.00013972,2]
[332897398,1721657458270,-500.0,0.00013972,2]
[332897399,1721657458281,-500.0,0.00013972,2]
[332897400,1721657458293,-500.0,0.00013972,2]
[332897401,1721657458304,-500.0,0.00013972,2]
[332897402,1721657458314,-500.0,0.00013972,2]
[332897403,1721657458324,-500.0,0.00013972,2]
[332897404,1721657458335,-296.79,0.00013972,2]
[332897405,1721657458345,-500.0,0.00013972,2]
[332897406,1721657458355,-500.0,0.00013972,2]
[332897407,1721657458365,-500.0,0.00013972,2]
[332897408,1721657458376,-337.14,0.00013972,2]
[332897409,1721657458386,-296.64,0.00013972,2]
[332897410,1721657458396,-500.0,0.00013972,2]
[332897411,1721657458408,-470.26,0.00013972,2]
[332897412,1721657458419,-478.88,0.00013972,2]
[332897413,1721657458430,-370.0,0.00013972,2]
[332897414,1721657458439,-436.64900004,0.00013972,2]
[332897415,1721657458448,-500.0,0.00013972,2]
[332897416,1721657458457,-500.0,0.00013972,2]
[332897417,1721657458467,-500.0,0.00013972,2]
[332897418,1721657458477,-267.77,0.00013972,2]
[332897419,1721657458486,-500.0,0.00013972,2]
[332897420,1721657458496,-486.94280647,0.00013972,2]
[332897421,1721657458505,-503.32530299,0.00013972,2]
[332897422,1721657458515,-500.0,0.00013972,2]
[332897423,1721657458524,-158.27,0.00013972,2]
[332897424,1721657458534,-551.65936389,0.00013972,2]
[332897425,1721657458543,-518.32252822,0.00013972,2]
[332897426,1721657458552,-201.96832673,0.00013972,2]
[332897427,1721657458561,-500.0,0.00013972,2]
[332897428,1721657458571,-507.08579853,0.00013972,2]
[332897429,1721657458580,-500.0,0.00013972,2]
[332897430,1721657458589,-500.0,0.00013972,2]
[332897431,1721657458598,-500.0,0.00013972,2]
[332897432,1721657458607,-500.0,0.00013972,2]
[332897433,1721657458616,-504.75716021,0.00013972,2]
[332897434,1721657458626,-504.84380992,0.00013972,2]
[332897435,1721657458635,-500.0,0.00013972,2]
[332897436,1721657458644,-500.0,0.00013972,2]
[332897437,1721657458654,-509.47617074,0.00013972,2]
[332897438,1721657458667,-430.2,0.00013972,2]
[332897439,1721657458676,-500.0,0.00013972,2]
[332897440,1721657458686,-500.0,0.00013972,2]
[332897441,1721657458695,-500.0,0.00013972,2]
[332897442,1721657458705,-349.1682991,0.00013972,2]
[332897443,1721657458716,-500.0,0.00013972,2]
[332897444,1721657458727,-500.0,0.00013972,2]
[332897445,1721657458738,-500.0,0.00013972,2]
[332897446,1721657458748,-500.0,0.00013972,2]
[332897447,1721657458758,-500.0,0.00013972,2]
[332897448,1721657458768,-500.0,0.00013972,2]
[332897449,1721657458779,-503.48151961,0.00013972,2]
[332897450,1721657458788,-500.0,0.00013972,2]
[332897451,1721657458797,-500.0,0.00013972,2]
[332897452,1721657458806,-500.0,0.00013972,2]
[332897453,1721657458816,-504.61008372,0.00013972,2]
[332897454,1721657458826,-590.00216212,0.00013972,2]
[332897455,1721657458835,-500.0,0.00013972,2]
[332897456,1721657458845,-500.0,0.00013972,2]
[332897457,1721657458854,-154.81459952,0.00013972,2]
[332897458,1721657458863,-500.0,0.00013972,2]
[332897459,1721657458873,-500.0,0.00013972,2]
[332897460,1721657458882,-504.6871762,0.00013972,2]
[332897461,1721657458891,-647.53954375,0.00013972,2]
[332897462,1721657458900,-519.18,0.00013972,2]
[332897463,1721657458910,-500.0,0.00013972,2]
[332897464,1721657458919,-375.4855311,0.00013972,2]
[332897465,1721657458928,-500.0,0.00013972,2]
[332897466,1721657458937,-503.24673825,0.00013972,2]
[332897467,1721657458947,-500.0,0.00013972,2]
[332897468,1721657458957,-509.94,0.00013972,2]
[332897469,1721657458966,-503.03252469,0.00013972,2]
[332897470,1721657458976,-500.0,0.00013972,2]
[332897471,1721657458985,-500.0,0.00013972,2]
[332897472,1721657458994,-500.0,0.00013972,2]
[332897473,1721657459003,-500.0,0.00013972,2]
[332897474,1721657459012,-500.0,0.00013972,2]
[332897475,1721657459021,-541.28,0.00013972,2]
[332897476,1721657459031,-500.0,0.00013972,2]
[332897477,1721657459040,-500.0,0.00013972,2]
[332897478,1721657459049,-377.65,0.00013972,2]
[332897479,1721657459059,-248.33983644,0.00013972,2]
[332897480,1721657459068,-559.81704241,0.00013972,2]
[332897481,1721657459077,-501.45833855,0.00013972,2]
[332897482,1721657459087,-219.47197617,0.00013972,2]
[332897483,1721657459097,-188.09,0.00013972,2]
[332897484,1721657459106,-235.15,0.00013972,2]
[332897485,1721657459115,-500.0,0.00013972,2]
[332897486,1721657459124,-519.22,0.00013972,2]
[332897487,1721657459134,-632.8,0.00013972,2]
[332897488,1721657459153,-500.0,0.00013972,2]
[332897489,1721657459163,-500.0,0.00013972,2]
[332897490,1721657459172,-500.0,0.00013972,2]
[332897491,1721657459181,-500.0,0.00013972,2]
[332897492,1721657459191,-500.0,0.00013972,2]
[332897493,1721657459200,-500.0,0.00013972,2]
[332897494,1721657459210,-500.0,0.00013972,2]
[332897495,1721657459220,-500.0,0.00013972,2]
[332897496,1721657459229,-215.14,0.00013972,2]
[332897497,1721657459238,-575.76,0.00013972,2]
[332897498,1721657459248,-997.89,0.00013972,2]
[332897499,1721657459257,-243.28,0.00013972,2]
[332897500,1721657459266,-500.0,0.00013972,2]
[332897501,1721657459276,-500.0,0.00013972,2]
[332897502,1721657459285,-500.0,0.00013972,2]
[332897503,1721657459295,-1938.4,0.00013972,2]
[332897504,1721657459304,-500.0,0.00013972,2]
[332897505,1721657459313,-407.87,0.00013972,2]
[332897506,1721657459323,-500.0,0.00013972,2]
[332897507,1721657459332,-500.0,0.00013972,2]
[332897508,1721657459342,-500.0,0.00013972,2]
[332897509,1721657459352,-500.0,0.00013972,2]
[332897510,1721657459362,-214.79,0.00013972,2]
[332897511,1721657459372,-195.87769448,0.00014,2]
[332897512,1721657459384,-1592.0,0.00014002,2]
[332897513,1721657459405,-993.46,0.00014246,2]
[332897514,1721657459415,-627.02,0.00014246,2]
[332897515,1721657459424,-500.0,0.00014246,2]
[332897516,1721657459434,-500.0,0.00014246,2]
[332897517,1721657459446,-500.0,0.00014246,2]
[332897518,1721657459456,-425.93,0.00014246,2]
[332897519,1721657459465,-500.0,0.00014246,2]
[332897520,1721657459475,-500.0,0.00014246,2]
[332897521,1721657459487,-500.0,0.00014246,2]
[332897522,1721657459496,-336.35,0.00014246,2]
[332897523,1721657459506,-182.06,0.00014246,2]
[332897524,1721657459515,-500.0,0.00014246,2]
[332897525,1721657459525,-500.0,0.00014246,2]
[332897526,1721657459535,-483.38746452,0.00014246,2]
[332897527,1721657459545,-419.45,0.00014246,2]
[332897528,1721657459554,-540.5,0.00014246,2]
[332897529,1721657459564,-500.0,0.00014246,2]
[332897530,1721657459574,-500.0,0.00014246,2]
[332897531,1721657459584,-500.0,0.00014246,2]
[332897532,1721657459593,-500.0,0.00014246,2]
[332897533,1721657459603,-500.0,0.00014246,2]
[332897534,1721657459613,-500.0,0.00014246,2]
[332897535,1721657459622,-500.0,0.00014246,2]
[332897536,1721657459632,-383.32,0.00014246,2]
[332897537,1721657459641,-500.0,0.00014246,2]
[332897538,1721657459652,-500.0,0.00014246,2]
[332897539,1721657459665,-574.5,0.00014246,2]
[332897540,1721657459675,-500.0,0.00014246,2]
[332897541,1721657459685,-533.47,0.00014246,2]
[332897542,1721657459694,-500.0,0.00014246,2]
[332897543,1721657459705,-170.02,0.00014246,2]
[332897544,1721657459715,-500.0,0.00014246,2]
[332897545,1721657459724,-500.0,0.00014246,2]
[332897546,1721657459735,-255.9,0.00014246,2]
[332897547,1721657459745,-398.19788215,0.00014246,2]
[332897548,1721657459755,-500.0,0.00014246,2]
[332897549,1721657459766,-500.0,0.00014246,2]
[332897550,1721657459777,-421.74,0.00014246,2]
[332897551,1721657459787,-288.49,0.00014246,2]
[332897552,1721657459798,-632.2,0.00014246,2]
[332897553,1721657459807,-176.56,0.00014246,2]
[332897554,1721657459817,-467.54867267,0.00014246,2]
[332897555,1721657459828,-500.0,0.00014246,2]